[Event "*** Titled Tuesday Blitz"]
[Site "Chess.com"]
[Date "2019.08.06"]
[Round "2"]
[White "nikitakhoroshev"]
[Black "Giraffe_Chess"]
[Result "0-1"]
[WhiteElo "2591"]
[BlackElo "2383"]
[TimeControl "180+2"]
[EndTime "13:20:52 PDT"]
[Termination "Giraffe_Chess won on time"]

1. e4 {[%clk 0:03:01.9]} 1... c5 {[%clk 0:03:00.3]} 2. Nc3 {[%clk 0:03:01.7]}
2... d6 {[%clk 0:02:59.8]} 3. f4 {[%clk 0:03:01]} 3... g6 {[%clk 0:02:59.5]} 4.
Nf3 {[%clk 0:03:01.9]} 4... Bg7 {[%clk 0:03:00.8]} 5. g3 {[%clk 0:03:03.6]} 5...
Nc6 {[%clk 0:03:01.9]} 6. Bg2 {[%clk 0:03:05.2]} 6... e6 {[%clk 0:02:58.9]} 7.
O-O {[%clk 0:03:03.5]} 7... Nge7 {[%clk 0:03:00.2]} 8. d3 {[%clk 0:03:05.1]}
8... O-O {[%clk 0:03:00.9]} 9. h3 {[%clk 0:03:05]} 9... a6 {[%clk 0:02:59.7]}
10. Be3 {[%clk 0:03:00.2]} 10... b5 {[%clk 0:02:59.2]} 11. Rb1 {[%clk
0:03:01.5]} 11... Bb7 {[%clk 0:02:59.9]} 12. Ne2 {[%clk 0:02:55.7]} 12... Re8
{[%clk 0:02:52.3]} 13. g4 {[%clk 0:02:48.1]} 13... f5 {[%clk 0:02:50.2]} 14. Ng5
{[%clk 0:02:19.5]} 14... Qd7 {[%clk 0:02:47.8]} 15. Ng3 {[%clk 0:02:19]} 15...
h6 {[%clk 0:02:46.4]} 16. Nf3 {[%clk 0:02:15.1]} 16... Nd4 {[%clk 0:02:39.7]}
17. c3 {[%clk 0:02:01.8]} 17... Nxf3+ {[%clk 0:02:36.4]} 18. Qxf3 {[%clk
0:02:02.9]} 18... Rf8 {[%clk 0:02:34.2]} 19. Qe2 {[%clk 0:02:02.8]} 19... Rac8
{[%clk 0:02:34.1]} 20. Rbd1 {[%clk 0:01:58.4]} 20... d5 {[%clk 0:02:30]} 21. e5
{[%clk 0:01:17.5]} 21... d4 {[%clk 0:02:23.8]} 22. Bxb7 {[%clk 0:01:16]} 22...
Qxb7 {[%clk 0:02:24.3]} 23. cxd4 {[%clk 0:01:17.6]} 23... cxd4 {[%clk
0:02:25.2]} 24. Bxd4 {[%clk 0:01:19.5]} 24... Qd5 {[%clk 0:02:24.9]} 25. Bc3
{[%clk 0:01:06.8]} 25... Nc6 {[%clk 0:02:15.9]} 26. a3 {[%clk 0:01:04.3]} 26...
a5 {[%clk 0:02:15.8]} 27. gxf5 {[%clk 0:00:34.6]} 27... gxf5 {[%clk 0:02:15.9]}
28. Kh2 {[%clk 0:00:25.4]} 28... b4 {[%clk 0:02:16]} 29. Rg1 {[%clk 0:00:26.7]}
29... bxc3 {[%clk 0:01:48.1]} 30. Nh5 {[%clk 0:00:27.8]} 30... Rc7 {[%clk
0:01:49.5]} 0-1

[Event "*** Titled Tuesday Blitz"]
[Site "Chess.com"]
[Date "2019.08.06"]
[Round "2"]
[White "Walter_White_Poland"]
[Black "swayamsm"]
[Result "0-1"]
[WhiteElo "2330"]
[BlackElo "2502"]
[TimeControl "180+2"]
[EndTime "13:20:52 PDT"]
[Termination "swayamsm won on time"]

1. e4 {[%clk 0:03:01.9]} 1... e6 {[%clk 0:03:01.9]} 2. d4 {[%clk 0:03:00.2]}
2... d5 {[%clk 0:03:02]} 3. Nc3 {[%clk 0:03:01.1]} 3... Nf6 {[%clk 0:03:03.4]}
4. Bg5 {[%clk 0:03:01.1]} 4... Bb4 {[%clk 0:03:04.1]} 5. e5 {[%clk 0:03:01.6]}
5... h6 {[%clk 0:03:05.5]} 6. Bd2 {[%clk 0:03:01.2]} 6... Bxc3 {[%clk
0:03:06.8]} 7. bxc3 {[%clk 0:03:02.4]} 7... Ne4 {[%clk 0:03:08.7]} 8. Bd3 {[%clk
0:03:03.5]} 8... Nxd2 {[%clk 0:03:07.7]} 9. Qxd2 {[%clk 0:03:04]} 9... c5 {[%clk
0:03:09.6]} 10. Nf3 {[%clk 0:03:03.7]} 10... Nc6 {[%clk 0:03:10.9]} 11. a4
{[%clk 0:02:54.1]} 11... c4 {[%clk 0:03:11.5]} 12. Be2 {[%clk 0:02:54.2]} 12...
Qa5 {[%clk 0:03:10.1]} 13. h4 {[%clk 0:02:51]} 13... Bd7 {[%clk 0:03:09.6]} 14.
h5 {[%clk 0:02:39.8]} 14... Ne7 {[%clk 0:03:10.9]} 15. g3 {[%clk 0:02:11.2]}
15... Bxa4 {[%clk 0:03:11.4]} 16. O-O {[%clk 0:02:09.5]} 16... b5 {[%clk
0:03:12]} 17. Nh4 {[%clk 0:01:20.8]} 17... Qd8 {[%clk 0:03:07.9]} 18. Bg4 {[%clk
0:01:15.6]} 18... O-O {[%clk 0:02:49]} 19. f4 {[%clk 0:00:59.9]} 19... a5 {[%clk
0:02:44.6]} 20. f5 {[%clk 0:00:52]} 20... exf5 {[%clk 0:02:45]} 21. Nxf5 {[%clk
0:00:53]} 21... Nxf5 {[%clk 0:02:44.6]} 22. Rxf5 {[%clk 0:00:52]} 22... Ra6
{[%clk 0:02:41.5]} 23. Raf1 {[%clk 0:00:51.9]} 23... Qe7 {[%clk 0:02:40.4]} 24.
Bf3 {[%clk 0:00:37]} 24... Qd7 {[%clk 0:02:27.8]} 25. Bg2 {[%clk 0:00:21.7]}
25... b4 {[%clk 0:02:24.9]} 26. cxb4 {[%clk 0:00:21.3]} 26... axb4 {[%clk
0:02:26.8]} 27. Qxb4 {[%clk 0:00:22]} 27... Bxc2 {[%clk 0:02:27.8]} 28. e6
{[%clk 0:00:09.8]} 28... Qxe6 {[%clk 0:02:23.3]} 29. Rxd5 {[%clk 0:00:09.3]}
29... Bd3 {[%clk 0:02:18.3]} 30. Re5 {[%clk 0:00:09.7]} 30... Qd6 {[%clk
0:02:14]} 31. Qb7 {[%clk 0:00:09.4]} 31... Bxf1 {[%clk 0:02:12.7]} 32. Kxf1
{[%clk 0:00:06.2]} 32... Ra1+ {[%clk 0:02:11.4]} 33. Ke2 {[%clk 0:00:05.2]}
33... Qxd4 {[%clk 0:02:10.8]} 0-1

[Event "*** Titled Tuesday Blitz"]
[Site "Chess.com"]
[Date "2019.08.06"]
[Round "2"]
[White "mitrabhaa"]
[Black "Drags95"]
[Result "1/2-1/2"]
[WhiteElo "2694"]
[BlackElo "2843"]
[TimeControl "180+2"]
[EndTime "13:20:59 PDT"]
[Termination "Game drawn by agreement"]

1. d4 {[%clk 0:03:01.7]} 1... Nf6 {[%clk 0:03:00.7]} 2. Nf3 {[%clk 0:03:02.3]}
2... e6 {[%clk 0:02:59.6]} 3. c4 {[%clk 0:03:00.4]} 3... d5 {[%clk 0:02:59.9]}
4. g3 {[%clk 0:02:55.4]} 4... Bb4+ {[%clk 0:02:58.3]} 5. Bd2 {[%clk 0:02:55.8]}
5... Be7 {[%clk 0:02:59.3]} 6. Bg2 {[%clk 0:02:56.6]} 6... c6 {[%clk 0:03:00.9]}
7. O-O {[%clk 0:02:57]} 7... Nbd7 {[%clk 0:03:02.4]} 8. Nc3 {[%clk 0:02:57.7]}
8... dxc4 {[%clk 0:03:01.1]} 9. a4 {[%clk 0:02:48.1]} 9... O-O {[%clk
0:02:59.7]} 10. e4 {[%clk 0:02:47.9]} 10... c5 {[%clk 0:02:57.7]} 11. d5 {[%clk
0:02:23.7]} 11... exd5 {[%clk 0:02:59.6]} 12. e5 {[%clk 0:02:15.3]} 12... Ne4
{[%clk 0:02:57.2]} 13. Nxd5 {[%clk 0:02:15]} 13... Nxd2 {[%clk 0:02:58.6]} 14.
Qxd2 {[%clk 0:02:16]} 14... Nb6 {[%clk 0:02:57.5]} 15. Nxe7+ {[%clk 0:02:14.9]}
15... Qxe7 {[%clk 0:02:59.4]} 16. a5 {[%clk 0:02:16]} 16... Rd8 {[%clk 0:02:43]}
17. Qe2 {[%clk 0:02:12.4]} 17... Nd5 {[%clk 0:02:44]} 18. Qxc4 {[%clk
0:02:12.5]} 18... Be6 {[%clk 0:02:45.6]} 19. Qe2 {[%clk 0:02:10.3]} 19... Rd7
{[%clk 0:02:22.5]} 20. Nd2 {[%clk 0:02:06.5]} 20... Nb4 {[%clk 0:02:20.1]} 21.
Ne4 {[%clk 0:01:59]} 21... Bd5 {[%clk 0:02:13.9]} 22. f4 {[%clk 0:01:58.4]}
22... Rad8 {[%clk 0:02:07.6]} 23. Rfd1 {[%clk 0:01:48.7]} 23... Bxe4 {[%clk
0:02:07.3]} 24. Bxe4 {[%clk 0:01:48.5]} 24... Rd4 {[%clk 0:02:08.8]} 25. Bf5
{[%clk 0:01:39.4]} 25... g6 {[%clk 0:02:08.2]} 26. Bh3 {[%clk 0:01:40.4]} 26...
Nd3 {[%clk 0:02:03.4]} 27. Bg2 {[%clk 0:01:25.8]} 27... Kg7 {[%clk 0:02:02.4]}
28. h3 {[%clk 0:01:25.8]} 28... h5 {[%clk 0:01:55.5]} 29. h4 {[%clk 0:01:22]}
29... c4 {[%clk 0:01:51.8]} 30. Bf3 {[%clk 0:01:17.7]} 30... Qb4 {[%clk
0:01:47.6]} 31. e6 {[%clk 0:01:05.4]} 31... fxe6 {[%clk 0:01:36.3]} 32. Qxe6
{[%clk 0:01:05.7]} 32... Qxb2 {[%clk 0:01:23.7]} 33. Qe7+ {[%clk 0:01:03.2]}
33... Kh6 {[%clk 0:01:15.3]} 34. Qg5+ {[%clk 0:01:03.8]} 34... Kh7 {[%clk
0:01:16.8]} 35. Qe7+ {[%clk 0:01:04.4]} 1/2-1/2

[Event "*** Titled Tuesday Blitz"]
[Site "Chess.com"]
[Date "2019.08.06"]
[Round "2"]
[White "rasmussvane"]
[Black "ChessyInstinct"]
[Result "1-0"]
[WhiteElo "2819"]
[BlackElo "2379"]
[TimeControl "180+2"]
[EndTime "13:20:59 PDT"]
[Termination "rasmussvane won by resignation"]

1. Nf3 {[%clk 0:03:01.9]} 1... d5 {[%clk 0:03:00.1]} 2. g3 {[%clk 0:03:02.7]}
2... c6 {[%clk 0:03:01.6]} 3. Bg2 {[%clk 0:03:04]} 3... Nf6 {[%clk 0:03:03]} 4.
O-O {[%clk 0:03:05.1]} 4... Bg4 {[%clk 0:03:04.1]} 5. h3 {[%clk 0:03:06.4]} 5...
Bxf3 {[%clk 0:03:04.9]} 6. Bxf3 {[%clk 0:03:07.4]} 6... Nbd7 {[%clk 0:03:06.5]}
7. d3 {[%clk 0:03:01.6]} 7... e5 {[%clk 0:03:06]} 8. e4 {[%clk 0:03:00.9]} 8...
dxe4 {[%clk 0:03:06.4]} 9. dxe4 {[%clk 0:03:01.3]} 9... Bc5 {[%clk 0:03:07.6]}
10. Nd2 {[%clk 0:03:01.5]} 10... O-O {[%clk 0:03:07.4]} 11. Qe2 {[%clk
0:03:00.2]} 11... Qe7 {[%clk 0:03:02.9]} 12. a4 {[%clk 0:02:59.8]} 12... a5
{[%clk 0:03:02.4]} 13. Nb3 {[%clk 0:02:52.3]} 13... Bb6 {[%clk 0:03:03]} 14. Bd2
{[%clk 0:02:52.8]} 14... Rfd8 {[%clk 0:03:01.4]} 15. Rfd1 {[%clk 0:02:42.4]}
15... Nf8 {[%clk 0:02:58.1]} 16. Kg2 {[%clk 0:02:38.1]} 16... Ne6 {[%clk
0:02:57.6]} 17. h4 {[%clk 0:02:37.8]} 17... h6 {[%clk 0:02:56.7]} 18. Be1 {[%clk
0:02:30.5]} 18... Nd4 {[%clk 0:02:04.9]} 19. Nxd4 {[%clk 0:02:29.4]} 19... Bxd4
{[%clk 0:02:06.8]} 20. Rab1 {[%clk 0:02:27.1]} 20... Qc7 {[%clk 0:01:54.6]} 21.
Qc4 {[%clk 0:02:23.9]} 21... Rd7 {[%clk 0:01:44.9]} 22. c3 {[%clk 0:02:13.5]}
22... Bb6 {[%clk 0:01:45.3]} 23. Rxd7 {[%clk 0:02:15.1]} 23... Qxd7 {[%clk
0:01:35]} 24. Rd1 {[%clk 0:02:16.7]} 24... Qe7 {[%clk 0:01:36]} 25. Rd3 {[%clk
0:02:02.9]} 25... Rd8 {[%clk 0:01:34.6]} 26. Rxd8+ {[%clk 0:02:00.4]} 26... Qxd8
{[%clk 0:01:36.5]} 27. Qb3 {[%clk 0:01:47.1]} 27... Nd7 {[%clk 0:01:29]} 28. Bh5
{[%clk 0:01:43]} 28... Qf6 {[%clk 0:01:11.9]} 29. Bg4 {[%clk 0:01:39.6]} 29...
Nc5 {[%clk 0:01:10.8]} 30. Qxb6 {[%clk 0:01:38.5]} 30... Nxe4 {[%clk 0:01:12.2]}
31. Qxb7 {[%clk 0:01:32.8]} 31... Qd6 {[%clk 0:01:10.7]} 32. Qc8+ {[%clk
0:01:31.9]} 32... Qf8 {[%clk 0:01:00.9]} 33. Qxf8+ {[%clk 0:01:21.7]} 33... Kxf8
{[%clk 0:01:02.8]} 34. b4 {[%clk 0:01:19.5]} 34... axb4 {[%clk 0:01:03.3]} 35.
cxb4 {[%clk 0:01:21.4]} 35... Nd6 {[%clk 0:01:04.9]} 36. Bd7 {[%clk 0:01:18.3]}
36... Ke7 {[%clk 0:01:03.2]} 37. Bxc6 {[%clk 0:01:19.2]} 37... Nc4 {[%clk
0:01:03.5]} 38. a5 {[%clk 0:01:18.3]} 38... Kd6 {[%clk 0:01:04.3]} 39. b5 {[%clk
0:01:19.1]} 39... e4 {[%clk 0:01:04.2]} 40. a6 {[%clk 0:01:18.4]} 40... f5
{[%clk 0:01:02.1]} 41. a7 {[%clk 0:01:19.1]} 41... Nb6 {[%clk 0:01:03.5]} 42.
Ba5 {[%clk 0:01:19.4]} 1-0

[Event "*** Titled Tuesday Blitz"]
[Site "Chess.com"]
[Date "2019.08.06"]
[Round "2"]
[White "BilodeauA"]
[Black "mikhaillushenkov"]
[Result "1-0"]
[WhiteElo "2904"]
[BlackElo "2671"]
[TimeControl "180+2"]
[EndTime "13:21:11 PDT"]
[Termination "BilodeauA won by resignation"]

1. e4 {[%clk 0:03:01.9]} 1... e6 {[%clk 0:03:00]} 2. d4 {[%clk 0:03:02.2]} 2...
d5 {[%clk 0:03:01.9]} 3. Nd2 {[%clk 0:03:00.7]} 3... Nf6 {[%clk 0:03:03]} 4. e5
{[%clk 0:03:01.2]} 4... Nfd7 {[%clk 0:03:04.3]} 5. f4 {[%clk 0:03:01.9]} 5... c5
{[%clk 0:03:05.8]} 6. c3 {[%clk 0:03:03.4]} 6... Nc6 {[%clk 0:03:07]} 7. Ndf3
{[%clk 0:03:05.1]} 7... Qb6 {[%clk 0:03:08.2]} 8. h4 {[%clk 0:03:06]} 8... f6
{[%clk 0:03:02.5]} 9. h5 {[%clk 0:03:01.6]} 9... cxd4 {[%clk 0:03:00.5]} 10.
cxd4 {[%clk 0:03:02.6]} 10... Bb4+ {[%clk 0:03:01.3]} 11. Ke2 {[%clk 0:02:49.6]}
11... O-O {[%clk 0:02:45]} 12. a3 {[%clk 0:02:50.2]} 12... Be7 {[%clk
0:02:44.2]} 13. Ke1 {[%clk 0:02:37.9]} 13... fxe5 {[%clk 0:02:44.4]} 14. fxe5
{[%clk 0:02:36.6]} 14... Ndxe5 {[%clk 0:02:45.4]} 15. dxe5 {[%clk 0:02:29.6]}
15... Nxe5 {[%clk 0:02:46.3]} 16. Be2 {[%clk 0:02:16]} 16... Bd7 {[%clk
0:01:47]} 17. h6 {[%clk 0:02:14.8]} 17... g6 {[%clk 0:01:17.6]} 18. Qd4 {[%clk
0:02:11]} 18... Nxf3+ {[%clk 0:01:06.2]} 19. Nxf3 {[%clk 0:02:11.8]} 19... Qxd4
{[%clk 0:01:07.2]} 20. Nxd4 {[%clk 0:02:13.7]} 20... e5 {[%clk 0:01:08]} 21. Nf3
{[%clk 0:02:09.5]} 21... Bf6 {[%clk 0:01:08.1]} 22. Bg5 {[%clk 0:01:44.9]} 22...
e4 {[%clk 0:01:02.9]} 23. Bxf6 {[%clk 0:01:45.8]} 23... exf3 {[%clk 0:01:04.3]}
24. Bg7 {[%clk 0:01:47.4]} 24... fxe2 {[%clk 0:00:23.3]} 25. Bxf8 {[%clk
0:01:48.1]} 25... Kxf8 {[%clk 0:00:25.1]} 26. Kxe2 {[%clk 0:01:49]} 26... Re8+
{[%clk 0:00:22.6]} 27. Kd2 {[%clk 0:01:48]} 27... Re4 {[%clk 0:00:21.6]} 28.
Rhf1+ {[%clk 0:01:45.7]} 28... Bf5 {[%clk 0:00:22.4]} 29. Rac1 {[%clk
0:01:44.6]} 29... Ke7 {[%clk 0:00:14]} 30. Rc7+ {[%clk 0:01:44.8]} 30... Kf6
{[%clk 0:00:15.5]} 31. Rxh7 {[%clk 0:01:43.7]} 31... Rg4 {[%clk 0:00:17]} 32.
Rf2 {[%clk 0:01:42.9]} 32... Kg5 {[%clk 0:00:18.1]} 33. Rh8 {[%clk 0:01:42.5]}
33... Rc4 {[%clk 0:00:19.2]} 34. h7 {[%clk 0:01:33.2]} 34... Rh4 {[%clk
0:00:20.1]} 35. Rxf5+ {[%clk 0:01:29.4]} 1-0

[Event "*** Titled Tuesday Blitz"]
[Site "Chess.com"]
[Date "2019.08.06"]
[Round "2"]
[White "rekosheten"]
[Black "GelmanAlexander"]
[Result "0-1"]
[WhiteElo "2349"]
[BlackElo "2563"]
[TimeControl "180+2"]
[EndTime "13:21:11 PDT"]
[Termination "GelmanAlexander won by resignation"]

1. Nf3 {[%clk 0:03:01.9]} 1... c5 {[%clk 0:03:00.3]} 2. e4 {[%clk 0:03:02.7]}
2... e6 {[%clk 0:03:01.4]} 3. c3 {[%clk 0:03:03.7]} 3... d5 {[%clk 0:03:01.9]}
4. e5 {[%clk 0:03:03.7]} 4... Nc6 {[%clk 0:03:02.6]} 5. d4 {[%clk 0:03:04.6]}
5... Bd7 {[%clk 0:03:03.5]} 6. Bd3 {[%clk 0:02:58]} 6... cxd4 {[%clk 0:03:03.2]}
7. cxd4 {[%clk 0:02:59.9]} 7... Qb6 {[%clk 0:03:04.3]} 8. O-O {[%clk 0:03:01]}
8... Nxd4 {[%clk 0:03:05.5]} 9. Nxd4 {[%clk 0:03:02.9]} 9... Qxd4 {[%clk
0:03:06.5]} 10. Nc3 {[%clk 0:03:04.8]} 10... a6 {[%clk 0:03:05.2]} 11. Qe2
{[%clk 0:03:04]} 11... Ne7 {[%clk 0:03:06.2]} 12. Kh1 {[%clk 0:03:04.4]} 12...
Nc6 {[%clk 0:03:07.1]} 13. f4 {[%clk 0:03:04.8]} 13... Nb4 {[%clk 0:03:07]} 14.
Bb1 {[%clk 0:02:51.1]} 14... Qc4 {[%clk 0:02:30.1]} 15. Qf3 {[%clk 0:02:51.7]}
15... Bb5 {[%clk 0:02:18.4]} 16. Nxb5 {[%clk 0:02:37.1]} 16... axb5 {[%clk
0:02:18.9]} 17. f5 {[%clk 0:02:13.1]} 17... Be7 {[%clk 0:02:07.8]} 18. fxe6
{[%clk 0:01:52.9]} 18... fxe6 {[%clk 0:02:08.7]} 19. Qf7+ {[%clk 0:01:54.1]}
19... Kd7 {[%clk 0:02:09.9]} 20. Bg5 {[%clk 0:01:49.5]} 20... Rae8 {[%clk
0:02:07.3]} 21. Bxe7 {[%clk 0:01:09.2]} 21... Rxe7 {[%clk 0:02:08.1]} 22. Qf3
{[%clk 0:01:10.9]} 22... g6 {[%clk 0:01:34.6]} 23. a3 {[%clk 0:01:10.5]} 23...
Nc6 {[%clk 0:01:35.5]} 24. Bd3 {[%clk 0:01:04.4]} 24... Qb3 {[%clk 0:01:28.3]}
25. Qe2 {[%clk 0:01:00.9]} 25... Nd4 {[%clk 0:01:24.7]} 26. Qd2 {[%clk 0:00:47]}
26... Rc8 {[%clk 0:01:21.9]} 27. Bxg6 {[%clk 0:00:33.8]} 27... Nc2 {[%clk
0:00:53.1]} 28. Qxc2 {[%clk 0:00:34]} 28... Rxc2 {[%clk 0:00:51.3]} 0-1

[Event "*** Titled Tuesday Blitz"]
[Site "Chess.com"]
[Date "2019.08.06"]
[Round "2"]
[White "timator"]
[Black "Heineccius"]
[Result "0-1"]
[WhiteElo "2402"]
[BlackElo "2549"]
[TimeControl "180+2"]
[EndTime "13:21:16 PDT"]
[Termination "Heineccius won by resignation"]

1. Nf3 {[%clk 0:03:00.5]} 1... Nf6 {[%clk 0:03:00.8]} 2. d4 {[%clk 0:03:00.7]}
2... e6 {[%clk 0:03:01.3]} 3. g3 {[%clk 0:03:01.2]} 3... d5 {[%clk 0:03:00.2]}
4. Bg2 {[%clk 0:03:01.8]} 4... Be7 {[%clk 0:03:01.3]} 5. O-O {[%clk 0:03:03.7]}
5... O-O {[%clk 0:03:02.4]} 6. b3 {[%clk 0:03:04.1]} 6... b6 {[%clk 0:02:55.8]}
7. Bb2 {[%clk 0:03:04.9]} 7... Bb7 {[%clk 0:02:56.5]} 8. Nbd2 {[%clk 0:03:06.5]}
8... Nbd7 {[%clk 0:02:54.4]} 9. c4 {[%clk 0:03:07.8]} 9... dxc4 {[%clk
0:02:47.1]} 10. Nxc4 {[%clk 0:03:08.6]} 10... c5 {[%clk 0:02:41.4]} 11. dxc5
{[%clk 0:03:08.6]} 11... Nxc5 {[%clk 0:02:39.4]} 12. Qxd8 {[%clk 0:03:09.6]}
12... Rfxd8 {[%clk 0:02:39.5]} 13. Rfd1 {[%clk 0:03:11.2]} 13... Be4 {[%clk
0:02:25.6]} 14. Nfe5 {[%clk 0:03:09.9]} 14... Bxg2 {[%clk 0:02:20.8]} 15. Kxg2
{[%clk 0:03:10.5]} 15... Bf8 {[%clk 0:02:10.3]} 16. f3 {[%clk 0:02:55.7]} 16...
Nd5 {[%clk 0:02:10.6]} 17. Kf2 {[%clk 0:02:32.4]} 17... Nb4 {[%clk 0:01:45.3]}
18. a3 {[%clk 0:01:52.6]} 18... Nd5 {[%clk 0:00:59.7]} 19. e4 {[%clk 0:01:43.2]}
19... Ne7 {[%clk 0:00:47.3]} 20. b4 {[%clk 0:01:40.9]} 20... Na4 {[%clk
0:00:46]} 21. Rxd8 {[%clk 0:00:56.3]} 21... Rxd8 {[%clk 0:00:46]} 22. Bc1 {[%clk
0:00:57.4]} 22... f6 {[%clk 0:00:36.3]} 23. Ng4 {[%clk 0:00:58.6]} 23... Nc6
{[%clk 0:00:26]} 24. Nge3 {[%clk 0:00:53.2]} 24... b5 {[%clk 0:00:23.2]} 25. Nb2
{[%clk 0:00:40.6]} 25... Nxb2 {[%clk 0:00:22.1]} 0-1

[Event "*** Titled Tuesday Blitz"]
[Site "Chess.com"]
[Date "2019.08.06"]
[Round "2"]
[White "Korchmar_Vasiliy"]
[Black "Firouzja2003"]
[Result "0-1"]
[WhiteElo "2650"]
[BlackElo "2995"]
[TimeControl "180+2"]
[EndTime "13:21:21 PDT"]
[Termination "Firouzja2003 won on time"]

1. d4 {[%clk 0:03:01.9]} 1... Nf6 {[%clk 0:03:00.9]} 2. c4 {[%clk 0:03:03.1]}
2... g6 {[%clk 0:03:00.5]} 3. Nc3 {[%clk 0:03:04]} 3... Bg7 {[%clk 0:03:02.2]}
4. e4 {[%clk 0:03:04.7]} 4... d6 {[%clk 0:03:03.9]} 5. h3 {[%clk 0:03:06.1]}
5... O-O {[%clk 0:03:04.1]} 6. Nf3 {[%clk 0:03:07.5]} 6... e5 {[%clk 0:03:04.6]}
7. d5 {[%clk 0:03:09]} 7... a5 {[%clk 0:03:05.8]} 8. g4 {[%clk 0:03:09.8]} 8...
Na6 {[%clk 0:03:07]} 9. Be3 {[%clk 0:03:11]} 9... Nd7 {[%clk 0:03:07.2]} 10. a3
{[%clk 0:03:06.7]} 10... Nb6 {[%clk 0:03:05.9]} 11. Rg1 {[%clk 0:03:05.7]} 11...
Nc5 {[%clk 0:03:03.5]} 12. h4 {[%clk 0:03:00]} 12... a4 {[%clk 0:02:45.6]} 13.
Nd2 {[%clk 0:02:53.5]} 13... Qxh4 {[%clk 0:02:22.8]} 14. Qf3 {[%clk 0:02:17.3]}
14... Qe7 {[%clk 0:02:02.3]} 15. O-O-O {[%clk 0:02:09.5]} 15... c6 {[%clk
0:01:55.8]} 16. Kb1 {[%clk 0:01:59.2]} 16... cxd5 {[%clk 0:01:46.3]} 17. cxd5
{[%clk 0:02:01.1]} 17... Bd7 {[%clk 0:01:47.5]} 18. Qh3 {[%clk 0:01:54.6]} 18...
h5 {[%clk 0:01:36]} 19. Be2 {[%clk 0:01:50.7]} 19... h4 {[%clk 0:01:19.6]} 20.
Nf3 {[%clk 0:01:41.9]} 20... Bf6 {[%clk 0:01:19]} 21. Nxh4 {[%clk 0:01:00]}
21... Bxh4 {[%clk 0:01:11.6]} 22. Rh1 {[%clk 0:00:58.6]} 22... g5 {[%clk
0:01:10.4]} 23. Qf3 {[%clk 0:00:21]} 23... Kg7 {[%clk 0:00:56.8]} 24. Rxh4
{[%clk 0:00:04.6]} 24... gxh4 {[%clk 0:00:58.7]} 25. g5 {[%clk 0:00:06.2]} 25...
Rh8 {[%clk 0:00:59.8]} 26. Rg1 {[%clk 0:00:06.5]} 26... Rag8 {[%clk 0:00:57.5]}
0-1

[Event "*** Titled Tuesday Blitz"]
[Site "Chess.com"]
[Date "2019.08.06"]
[Round "2"]
[White "vanea_03"]
[Black "ahachess"]
[Result "1-0"]
[WhiteElo "2677"]
[BlackElo "2393"]
[TimeControl "180+2"]
[EndTime "13:21:24 PDT"]
[Termination "vanea_03 won by resignation"]

1. d4 {[%clk 0:03:01.9]} 1... Nf6 {[%clk 0:02:52.2]} 2. c4 {[%clk 0:03:02.4]}
2... g6 {[%clk 0:02:52.7]} 3. Nf3 {[%clk 0:03:02.8]} 3... Bg7 {[%clk 0:02:53.6]}
4. e3 {[%clk 0:03:04.4]} 4... d6 {[%clk 0:02:54.8]} 5. Be2 {[%clk 0:03:04.7]}
5... O-O {[%clk 0:02:55.8]} 6. Nc3 {[%clk 0:03:06.3]} 6... Nc6 {[%clk
0:02:56.6]} 7. d5 {[%clk 0:03:06.9]} 7... Nb8 {[%clk 0:02:56.3]} 8. O-O {[%clk
0:03:07.6]} 8... Nbd7 {[%clk 0:02:57.3]} 9. e4 {[%clk 0:03:05.6]} 9... e5 {[%clk
0:02:49]} 10. dxe6 {[%clk 0:03:00.1]} 10... fxe6 {[%clk 0:02:49.6]} 11. h3
{[%clk 0:02:52.6]} 11... Kh8 {[%clk 0:02:31.3]} 12. Bg5 {[%clk 0:02:47]} 12...
h6 {[%clk 0:01:51.9]} 13. Be3 {[%clk 0:02:46.7]} 13... e5 {[%clk 0:01:46.3]} 14.
b4 {[%clk 0:01:55.8]} 14... a5 {[%clk 0:01:16.8]} 15. a3 {[%clk 0:01:55.5]}
15... b6 {[%clk 0:01:14.7]} 16. Qc2 {[%clk 0:01:44.1]} 16... Bb7 {[%clk
0:01:13.6]} 17. Rad1 {[%clk 0:01:40.2]} 17... Qe7 {[%clk 0:01:12.4]} 18. Nd5
{[%clk 0:01:39.1]} 18... Bxd5 {[%clk 0:00:55.3]} 19. cxd5 {[%clk 0:01:41]} 19...
axb4 {[%clk 0:00:50.9]} 20. axb4 {[%clk 0:01:42.9]} 20... Rfc8 {[%clk 0:00:49]}
21. Ra1 {[%clk 0:01:38]} 21... Nf8 {[%clk 0:00:49.2]} 22. Nd2 {[%clk 0:01:34.7]}
22... Ne8 {[%clk 0:00:48.6]} 23. Bg4 {[%clk 0:01:24.9]} 23... Rcb8 {[%clk
0:00:46.7]} 24. Rfc1 {[%clk 0:01:24.1]} 24... Nh7 {[%clk 0:00:37.3]} 25. Qc6
{[%clk 0:01:19.5]} 25... Nhf6 {[%clk 0:00:34.4]} 26. Rxa8 {[%clk 0:01:18.6]}
26... Rxa8 {[%clk 0:00:30.9]} 27. Qxa8 {[%clk 0:01:20.5]} 27... Kh7 {[%clk
0:00:30]} 28. Be6 {[%clk 0:01:17.7]} 28... Nh5 {[%clk 0:00:28.6]} 29. Qc8 {[%clk
0:01:14.6]} 29... Nf4 {[%clk 0:00:27.2]} 30. Bxf4 {[%clk 0:01:12.1]} 30... exf4
{[%clk 0:00:27.8]} 31. Qd7 {[%clk 0:01:12.9]} 31... Qf8 {[%clk 0:00:27.4]} 32.
Qf7 {[%clk 0:01:10.7]} 32... Qxf7 {[%clk 0:00:27]} 33. Bxf7 {[%clk 0:01:12.6]}
1-0

[Event "*** Titled Tuesday Blitz"]
[Site "Chess.com"]
[Date "2019.08.06"]
[Round "2"]
[White "Karina_Ivanova"]
[Black "CMS13"]
[Result "1-0"]
[WhiteElo "2160"]
[BlackElo "1996"]
[TimeControl "180+2"]
[EndTime "13:21:24 PDT"]
[Termination "Karina_Ivanova won by resignation"]

1. d4 {[%clk 0:02:59]} 1... d5 {[%clk 0:03:00.7]} 2. Nf3 {[%clk 0:02:59.1]} 2...
Nf6 {[%clk 0:03:01.5]} 3. c4 {[%clk 0:02:59.9]} 3... e6 {[%clk 0:03:02.5]} 4. g3
{[%clk 0:03:00.4]} 4... dxc4 {[%clk 0:03:02.4]} 5. Bg2 {[%clk 0:03:01.2]} 5...
Nc6 {[%clk 0:03:02.9]} 6. Qa4 {[%clk 0:02:59]} 6... Bd7 {[%clk 0:03:01]} 7. Qxc4
{[%clk 0:02:58.3]} 7... Na5 {[%clk 0:02:58.6]} 8. Qd3 {[%clk 0:02:56.7]} 8... c5
{[%clk 0:02:23.7]} 9. dxc5 {[%clk 0:02:50.8]} 9... Bxc5 {[%clk 0:02:15.1]} 10.
O-O {[%clk 0:02:51.1]} 10... Bc6 {[%clk 0:01:50]} 11. Qc2 {[%clk 0:02:41.5]}
11... Qb6 {[%clk 0:01:31.9]} 12. Nc3 {[%clk 0:02:37.9]} 12... O-O {[%clk
0:01:00.1]} 13. Rb1 {[%clk 0:02:31.7]} 13... Nc4 {[%clk 0:00:24.2]} 14. b4
{[%clk 0:02:22.2]} 14... Be7 {[%clk 0:00:19.1]} 15. b5 {[%clk 0:02:18.6]} 15...
Bd5 {[%clk 0:00:18.5]} 16. e4 {[%clk 0:02:10.2]} 16... Nxe4 {[%clk 0:00:08.8]}
17. Nxe4 {[%clk 0:02:09.2]} 17... Ba3 {[%clk 0:00:08.2]} 18. Nc3 {[%clk
0:01:56.1]} 18... Bxc1 {[%clk 0:00:08.7]} 19. Nxd5 {[%clk 0:01:53.8]} 19... exd5
{[%clk 0:00:10.6]} 20. Qxc1 {[%clk 0:01:52.5]} 20... Rac8 {[%clk 0:00:11.1]} 21.
Qg5 {[%clk 0:01:41]} 21... f6 {[%clk 0:00:11.1]} 22. Qxd5+ {[%clk 0:01:40.4]}
22... Kh8 {[%clk 0:00:12.7]} 23. Rfc1 {[%clk 0:01:32.4]} 23... Rfd8 {[%clk
0:00:12.8]} 24. Qf7 {[%clk 0:01:19.3]} 24... Rc7 {[%clk 0:00:11.9]} 25. Qh5
{[%clk 0:01:16.5]} 25... Rdc8 {[%clk 0:00:12.7]} 26. Bh3 {[%clk 0:01:12.3]}
26... Rd8 {[%clk 0:00:11.8]} 27. Bf5 {[%clk 0:01:07.2]} 27... g5 {[%clk
0:00:11.9]} 28. Rxc4 {[%clk 0:01:04]} 1-0